bitfinex-derivatives/quotes_SOLF0:USTF0_20241216
["timestamp","ask_amount","ask_price","bid_price","bid_amount"]
[1734320084516,2.2492,222.4,222.35,2.2497]
[1734320084717,2.2492,222.4,222.36,4.97736489]
[1734320085018,2.2492,222.4,222.34,2.2498]
[1734320085215,2.2492,222.4,222.35,4.97732621]
[1734320085422,2.2492,222.4,222.34,2.2498]
[1734320085621,6.10295113,222.39,222.35,4.97730539]
[1734320085817,6.10295113,222.39,222.33,5.44209678]
[1734320086128,2.2496,222.37,222.34,4.97736362]
[1734320086318,2.2496,222.37,222.35,4.97736362]
[1734320086622,2.2496,222.37,222.33,5.44209678]
[1734320086822,2.2496,222.37,222.34,4.97695981]
[1734320087013,6.10295113,222.39,222.33,5.44209678]
[1734320087222,2.2496,222.36,222.33,5.44209678]
[1734320087917,2.2497,222.35,222.31,2.22]
[1734320088118,6.10295113,222.37,222.31,2.22]
[1734320088824,6.10295113,222.35,222.27,1.4838]
[1734320089022,2.2501,222.32,222.28,4.97644177]
[1734320089224,2.2501,222.32,222.27,1.4838]
[1734320089720,2.2501,222.32,222.28,4.97432651]
[1734320089927,2.2501,222.32,222.27,1.4838]
[1734320090218,2.2501,222.32,222.28,4.97427997]
[1734320090424,2.2501,222.32,222.27,1.4838]
[1734320090616,2.2501,222.32,222.28,4.97261975]
[1734320090820,2.2501,222.32,222.29,5.41061408]
[1734320091617,2.2501,222.31,222.29,5.41061408]
[1734320092017,6.10295113,222.33,222.29,5.41061408]
[1734320093427,2.25,222.32,222.29,5.41061408]
[1734320096623,2.2505,222.27,222.24,2.22]
[1734320096827,2.2505,222.27,222.25,4.96704665]
[1734320097023,2.2505,222.27,222.22,8.32295113]
[1734320097220,6.10295113,222.31,222.23,4.96828375]
[1734320097422,2.2502,222.3,222.24,18.70474288]
[1734320097625,2.2502,222.3,222.25,4.96828375]
[1734320097821,2.2502,222.3,222.24,13.73645913]
[1734320098026,2.2502,222.3,222.25,4.96710516]
[1734320098222,2.2502,222.3,222.24,13.73645913]
[1734320098427,2.2502,222.3,222.25,4.96662793]
[1734320098628,2.2502,222.3,222.24,13.73645913]
[1734320098828,2.2502,222.3,222.25,4.96660244]
[1734320099030,2.2502,222.3,222.24,13.73645913]
[1734320099329,2.2502,222.3,222.25,4.96628265]
[1734320099530,2.2502,222.3,222.24,13.73645913]
[1734320099725,2.2502,222.3,222.25,4.96632594]
[1734320100030,2.2502,222.3,222.24,13.73645913]
[1734320100232,2.2502,222.3,222.25,4.96632646]
[1734320100433,2.2502,222.3,222.24,13.73645913]
[1734320100729,2.2502,222.3,222.25,4.96668329]
[1734320100927,2.2502,222.3,222.24,13.73645913]
[1734320101127,2.2502,222.3,222.25,4.96666165]
[1734320101328,2.2502,222.3,222.24,13.73645913]
[1734320101525,2.2502,222.3,222.25,4.96715319]
[1734320101731,248.50271764,222.45,222.28,6.10295113]
[1734320101732,2.22,222.37,222.28,6.10295113]
[1734320101931,6.10295113,222.39,222.3,6.10295113]
[1734320103127,6.10295113,222.39,222.31,2.2501]
[1734320103325,6.10295113,222.37,222.27,2.22]
[1734320103528,6.10295113,222.37,222.28,4.96773634]
[1734320103831,2.2499,222.34,222.28,2.2504]
[1734320104031,2.2499,222.34,222.28,8.35335113]
[1734320104221,2.2499,222.34,222.29,4.96771265]
[1734320104423,8.35265113,222.35,222.29,2.2503]
[1734320104629,8.35265113,222.35,222.3,4.96870272]
[1734320104828,8.35265113,222.35,222.29,2.2503]
[1734320105030,8.35245113,222.37,222.31,2.2501]
[1734320105731,247.06201764,222.53,222.36,6.10295113]
[1734320105930,6.10295113,222.45,222.36,8.32295113]
[1734320106631,6.10295113,222.45,222.37,4.970348]
[1734320106835,6.10295113,222.45,222.36,8.32295113]
[1734320107129,6.10295113,222.45,222.37,4.97013473]
[1734320107337,6.10295113,222.45,222.38,4.97139482]
[1734320107530,6.10295113,222.45,222.38,2.2493]
[1734320107726,6.10295113,222.43,222.36,8.32295113]
[1734320108535,8.35185113,222.43,222.36,8.32295113]
[1734320109128,6.10295113,222.43,222.37,2.2495]
[1734320109331,6.10295113,222.43,222.36,8.32295113]
[1734320109633,6.10295113,222.43,222.37,4.97362667]
[1734320109835,6.10295113,222.43,222.36,8.32295113]
[1734320110437,2.9815,222.51,222.38,6.10295113]
[1734320110639,6.10295113,222.47,222.38,6.10295113]
[1734320110832,6.10295113,222.47,222.39,4.9740487]
[1734320111136,6.10295113,222.47,222.4,4.97433241]
[1734320111333,6.10295113,222.47,222.41,4.9732156]
[1734320111536,6.10295113,222.47,222.41,2.2491]
[1734320111736,6.10295113,222.47,222.38,6.10295113]
[1734320112040,8.35155113,222.47,222.4,2.2491]
[1734320112233,6.10295113,222.47,222.38,6.10295113]
[1734320112535,6.10295113,222.47,222.39,4.972898]
[1734320112737,6.10295113,222.47,222.4,4.972898]
[1734320112938,6.10295113,222.45,222.38,6.10295113]
[1734320113131,8.35165113,222.45,222.39,7.22278015]
[1734320113329,8.35165113,222.45,222.37,1.4748]
[1734320113529,8.35165113,222.45,222.38,4.97345024]
[1734320113737,8.35185113,222.43,222.39,4.97345024]
[1734320113940,8.35185113,222.43,222.37,1.4748]
[1734320114937,2.2491,222.41,222.36,7.65842153]
[1734320115233,6.10295113,222.41,222.37,4.97412781]
[1734320115437,6.10295113,222.41,222.36,5.43842153]
[1734320115639,2.2492,222.4,222.37,4.974225]
[1734320115836,2.2492,222.4,222.36,5.43842153]
[1734320116140,6.10295113,222.41,222.37,4.97422391]
[1734320116339,6.10295113,222.41,222.36,5.43842153]
[1734320116537,6.10295113,222.41,222.1,50.00979594]
[1734320116538,6.10295113,222.39,222.15,14.86438349]
[1734320116736,6.10295113,222.37,222.29,13.29896911]
[1734320116931,6.10295113,222.37,222.29,6.10295113]
[1734320117135,6.10295113,222.37,222.3,4.97617144]
[1734320117336,6.10295113,222.37,222.31,4.97617144]
[1734320117532,8.35255113,222.37,222.32,4.97617144]
[1734320117736,8.35255113,222.37,222.3,2.2501]
[1734320117932,8.35255113,222.37,222.31,4.9765991]
[1734320118240,8.35255113,222.37,222.32,4.9765991]
[1734320118441,8.35255113,222.37,222.3,2.2501]
[1734320118442,8.35255113,222.37,222.33,4.9765991]
[1734320118642,8.35255113,222.37,222.3,2.2501]
[1734320118842,8.35255113,222.37,222.31,4.97639988]
[1734320119040,2.2496,222.36,222.32,4.97639988]
[1734320119246,2.2496,222.36,222.29,10.57315113]
[1734320119441,2.2496,222.36,222.3,4.97613041]
[1734320119738,2.2496,222.36,222.31,4.97613041]
[1734320119944,2.2496,222.36,222.32,4.97613041]
[1734320120244,2.2496,222.36,222.29,8.32295113]
[1734320120245,2.2496,222.36,222.33,4.97608528]
[1734320120445,2.2496,222.36,222.32,5.27183594]
[1734320120643,8.35265113,222.35,222.32,5.27183594]
[1734320122441,8.35285113,222.33,222.11,61.64438349]
[1734320122642,6.10295113,222.33,222.24,11.07951158]
[1734320122841,6.10295113,222.31,222.28,5.36529097]
[1734320123647,6.10295113,222.31,222.24,2.22]
[1734320123851,6.10295113,222.31,222.25,4.97677138]
[1734320124155,6.10295113,222.31,222.26,4.97677138]
[1734320124344,6.10295113,222.31,222.24,2.22]
[1734320124541,2.2502,222.3,222.25,4.97639297]
[1734320124849,2.2502,222.3,222.26,4.97639297]
[1734320125053,2.2502,222.3,222.24,4.4708]
[1734320125244,2.2502,222.3,222.25,4.97632984]
[1734320125449,2.2502,222.3,222.26,4.97632984]
[1734320125749,2.2501,222.32,222.27,4.97632984]
[1734320125945,1.5386,222.38,222.28,4.97632984]
[1734320126145,6.10295113,222.37,222.28,6.10295113]
[1734320126349,6.10295113,222.37,222.29,4.97575999]
[1734320126551,6.10295113,222.37,222.3,4.97575999]
[1734320126748,6.10295113,222.37,222.31,4.97543484]
[1734320126953,6.10295113,222.37,222.3,2.2501]
[1734320127251,6.10295113,222.37,222.31,4.97543495]
[1734320127444,6.10295113,222.37,222.3,2.2501]
[1734320127652,6.10295113,222.37,222.31,4.9750433]
[1734320127850,6.10295113,222.37,222.32,4.9750433]
[1734320128151,6.10295113,222.35,222.29,2.22]
[1734320128353,6.10295113,222.35,222.3,4.97571341]
[1734320128650,6.10295113,222.35,222.29,2.22]
[1734320128847,6.10295113,222.35,222.3,4.97597815]
[1734320129050,6.10295113,222.37,222.29,2.22]
[1734320129244,3.0479,222.39,222.3,11.07858426]
[1734320129450,6.10295113,222.4,222.32,6.10295113]
[1734320129651,2.2491,222.41,222.33,4.97456453]
[1734320129854,8.35205113,222.41,222.34,11.07718555]
[1734320130055,8.35205113,222.41,222.34,13.29718555]
[1734320130351,8.35205113,222.41,222.34,8.32295113]
[1734320131152,8.35205113,222.41,222.34,10.57275113]
[1734320131554,8.35205113,222.41,222.35,4.97269993]
[1734320131855,8.35205113,222.41,222.36,4.97259713]
[1734320132053,8.35205113,222.41,222.35,4.97269993]
[1734320132253,8.35205113,222.41,222.36,4.9722002]
[1734320132457,8.35205113,222.41,222.35,4.97269993]
[1734320132957,8.35205113,222.41,222.34,10.57275113]
[1734320133155,8.35205113,222.41,222.35,4.97171016]
[1734320133352,8.35205113,222.41,222.36,4.9711422]
[1734320133550,8.35205113,222.41,222.34,10.57275113]
[1734320133752,6.10295113,222.41,222.35,4.97069819]
[1734320133953,2.2492,222.4,222.34,4.4698]
[1734320134159,2.2492,222.4,222.35,4.96953201]
[1734320134460,6.10295113,222.41,222.36,4.96933408]
[1734320134662,6.10295113,222.41,222.35,2.2496]
[1734320134958,6.10295113,222.41,222.36,4.96874247]
[1734320135258,6.10295113,222.41,222.35,2.2496]
[1734320135460,6.10295113,222.41,222.36,7.21834307]
[1734320135762,6.10295113,222.41,222.36,2.2496]
[1734320136058,6.10295113,222.43,222.34,8.32295113]
[1734320136258,6.10295113,222.43,222.36,6.10295113]
[1734320136560,6.10295113,222.43,222.37,4.96843358]
[1734320136861,8.35185113,222.43,222.37,2.2495]
[1734320137050,6.10295113,222.41,222.34,8.32295113]
[1734320137358,6.10295113,222.39,222.35,4.96883741]
[1734320137559,6.10295113,222.39,222.34,2.22]
[1734320137759,6.10295113,222.39,222.35,4.96971699]
[1734320137963,6.10295113,222.39,222.34,2.22]
[1734320138155,6.10295113,222.39,222.35,4.96986204]
[1734320138356,6.10295113,222.39,222.34,2.22]
[1734320138555,8.35225113,222.39,222.35,4.9702896]
[1734320138764,8.35225113,222.39,222.33,2.2498]
[1734320138954,6.10295113,222.37,222.31,2.22]
[1734320139161,6.10295113,222.37,222.32,4.97172617]
[1734320139460,6.10295113,222.37,222.33,4.97172617]
[1734320139660,6.10295113,222.37,222.31,2.25]
[1734320139860,6.10295113,222.37,222.32,4.97304291]
[1734320140055,6.10295113,222.37,222.33,4.97304291]
[1734320140263,6.10295113,222.37,222.31,2.25]
[1734320140465,6.10295113,222.37,222.32,4.97317615]
[1734320140665,6.10295113,222.37,222.31,2.25]
[1734320140666,2.2496,222.36,222.33,4.97317615]
[1734320140867,6.10295113,222.37,222.29,2.22]
[1734320141064,6.10295113,222.35,222.3,4.97385466]
[1734320141265,6.10295113,222.35,222.31,4.97385466]
[1734320141461,6.10295113,222.35,222.32,4.97385466]
[1734320141659,3.7475,222.45,222.34,6.10295113]
[1734320141859,6.10295113,222.42,222.35,4.97410776]
[1734320142063,6.10295113,222.42,222.36,4.97410776]
[1734320142264,8.35195113,222.42,222.37,4.97410776]
[1734320142465,8.35195113,222.42,222.35,2.2497]
[1734320142666,8.35195113,222.42,222.36,4.97188624]
[1734320142964,8.35195113,222.42,222.37,4.97188624]
[1734320143163,8.35195113,222.42,222.38,4.97188624]
[1734320143360,8.35195113,222.42,222.36,2.2495]
[1734320143560,3.7475,222.45,222.34,8.32295113]
[1734320143561,6.10295113,222.4,222.37,4.97217543]
[1734320143761,6.10295113,222.4,222.32,6.10295113]
[1734320143961,6.10295113,222.4,222.33,4.97301351]
[1734320144161,6.10295113,222.4,222.32,6.10295113]
[1734320144162,6.10295113,222.4,222.34,4.97301351]
[1734320144362,6.10295113,222.4,222.35,4.97301351]
[1734320144566,6.10295113,222.4,222.32,6.10295113]
[1734320144771,6.10295113,222.4,222.33,4.97497946]
[1734320144970,2.2494,222.38,222.34,4.97497946]
[1734320145167,6.10295113,222.4,222.35,4.97497946]
[1734320145472,6.10295113,222.4,222.36,4.97497946]
[1734320145774,2.2492,222.4,222.32,6.10295113]
[1734320145966,2.2492,222.4,222.33,4.97707739]
[1734320146167,2.2492,222.4,222.34,4.97707739]
[1734320146470,2.2492,222.4,222.35,7.22677739]
[1734320146671,2.2492,222.4,222.36,4.97707739]
[1734320146870,2.2492,222.4,222.35,2.2497]
[1734320147172,2.2492,222.4,222.36,4.9775713]
[1734320147469,2.2492,222.4,222.35,2.2497]
[1734320147768,1.5275,222.45,222.36,4.97793488]
[1734320148072,6.10295113,222.37,222.24,2.22]
[1734320148372,6.10295113,222.32,222.27,2.2505]
[1734320148568,6.10295113,222.32,222.28,4.98036203]
[1734320148766,6.10295113,222.32,222.29,4.98036203]
[1734320148971,6.10295113,222.32,222.27,2.2505]
[1734320149163,6.10295113,222.32,222.28,4.98073648]
[1734320149365,6.10295113,222.32,222.29,4.98073648]
[1734320149571,6.10295113,222.32,222.27,2.2505]
[1734320149768,6.10295113,222.3,222.28,4.9802999]
[1734320149966,2.2501,222.31,222.24,2.22]
[1734320150169,9.54793697,222.34,222.25,4.98044564]
[1734320150367,9.54793697,222.34,222.26,4.98044564]
[1734320150567,9.54793697,222.34,222.27,4.98044564]
[1734320150868,9.54793697,222.34,222.28,4.98044564]
[1734320151071,9.54793697,222.34,222.23,5.2882]
[1734320151277,2.2501,222.31,222.23,7.539]
[1734320151571,2.2501,222.31,222.24,4.97878349]
[1734320151767,2.2501,222.31,222.25,4.97878349]
[1734320151974,2.2501,222.31,222.26,4.97878349]
[1734320152168,2.2502,222.3,222.27,4.97878349]
[1734320152472,2.2502,222.3,222.28,4.97878349]
[1734320152669,2.2502,222.3,222.26,5.44621703]
[1734320152868,2.2502,222.3,222.27,4.97828968]
[1734320153071,2.2502,222.3,222.28,4.97828968]
[1734320153274,2.2502,222.3,222.26,5.44621703]
[1734320153467,2.2502,222.3,222.27,4.97784172]
[1734320153773,2.2502,222.3,222.26,5.44621703]
[1734320153974,2.2501,222.31,222.27,4.97801528]
[1734320154170,2.2501,222.31,222.28,4.97801528]
[1734320154476,2.2501,222.31,222.26,5.44621703]
[1734320154671,2.2501,222.31,222.27,4.97750112]
[1734320154975,2.2501,222.31,222.28,4.97750112]
[1734320155172,2.2501,222.31,222.26,5.44621703]
[1734320155368,2.2501,222.31,222.27,4.97754069]
[1734320155574,2.2501,222.31,222.26,5.44621703]
[1734320155575,2.2501,222.31,222.28,4.97754069]
[1734320155774,2.2501,222.31,222.29,4.97754069]
[1734320156075,2.2501,222.31,222.26,5.44621703]
[1734320156378,2.2501,222.31,222.27,4.9766329]
[1734320156573,2.2501,222.31,222.28,4.9766329]
[1734320156773,2.2501,222.31,222.25,2.2507]
[1734320156975,2.2501,222.31,222.26,4.97760107]
[1734320157174,2.2501,222.31,222.27,4.97760107]
[1734320157377,2.2501,222.31,222.28,4.97760107]
[1734320157575,9.54793697,222.34,222.26,5.39003147]
[1734320157869,9.54793697,222.34,222.27,4.97837536]
[1734320158073,9.54793697,222.34,222.28,4.97837536]
[1734320158282,2.2502,222.31,222.26,5.39003147]
[1734320158579,2.2502,222.31,222.27,4.97894257]
[1734320158780,2.2502,222.31,222.28,4.97894257]
[1734320158978,2.2502,222.31,222.26,5.39003147]
[1734320159282,2.2502,222.31,222.27,4.97943443]
[1734320159478,2.22,222.35,222.28,4.97943443]
[1734320159782,2.22,222.35,222.29,4.97943443]
[1734320159977,2.22,222.35,222.3,4.97943443]
[1734320160178,2.22,222.35,222.26,5.39003147]
[1734320160485,2.2499,222.34,222.28,2.2503]
[1734320160682,2.2499,222.34,222.29,4.97692479]
[1734320160979,2.2499,222.34,222.3,4.97692479]
[1734320161184,2.2499,222.33,222.28,2.2503]
[1734320161383,2.2499,222.33,222.29,4.97929715]
[1734320161580,2.2499,222.33,222.3,4.97929715]
[1734320161782,2.2499,222.33,222.28,2.2503]
[1734320161982,2.2499,222.33,222.29,4.97923267]
[1734320162285,2.2499,222.33,222.3,4.97923267]
[1734320162476,2.2499,222.33,222.31,4.97923267]
[1734320162680,2.2499,222.33,222.28,2.2503]
[1734320162880,2.2499,222.33,222.29,4.97868916]
[1734320163179,2.2499,222.33,222.3,4.97868916]
[1734320163381,2.2499,222.33,222.31,4.97845337]
[1734320163576,2.2499,222.33,222.28,2.2503]
[1734320163775,2.2499,222.33,222.29,4.97883437]
[1734320164081,2.2499,222.33,222.3,4.97883437]
[1734320164387,2.2499,222.33,222.31,4.97883437]
[1734320164684,2.2499,222.33,222.28,2.2503]
[1734320164985,2.2497,222.36,222.3,2.2501]
[1734320165185,9.54793697,222.37,222.31,4.97922587]
[1734320165383,9.54793697,222.37,222.3,2.2501]
[1734320165688,9.54793697,222.37,222.31,4.97867349]
[1734320165985,2.2498,222.35,222.3,2.2501]
[1734320166184,9.54793697,222.37,222.31,4.97857039]
[1734320166383,9.54793697,222.37,222.28,2.2503]
[1734320166583,9.54793697,222.37,222.29,4.9786827]
[1734320166886,9.54793697,222.37,222.3,4.9786827]
[1734320167088,9.54793697,222.37,222.28,2.2503]
[1734320167291,9.54793697,222.37,222.29,4.97992745]
[1734320167485,2.25,222.33,222.3,4.97992745]
[1734320167685,2.25,222.33,222.31,4.97979116]
[1734320167885,2.25,222.33,222.29,2.2503]
[1734320168087,2.25,222.33,222.3,4.9797767]
[1734320168286,2.25,222.33,222.31,4.9797767]
[1734320168487,2.25,222.33,222.29,2.2503]
[1734320168789,2.25,222.33,222.3,4.98016425]
[1734320168990,2.25,222.33,222.26,5.39003147]
[1734320169185,2.25,222.33,222.27,4.98041041]
[1734320169389,2.25,222.33,222.28,4.98041041]
[1734320169684,2.25,222.33,222.26,5.39003147]
[1734320169685,2.25,222.33,222.29,4.98041041]
[1734320169889,2.25,222.33,222.3,4.98041041]
[1734320170090,6.10968894,222.32,222.26,5.39003147]
[1734320170294,8.35948894,222.34,222.26,11.49972041]
[1734320170483,8.35948894,222.34,222.27,4.98064402]
[1734320170687,8.35948894,222.34,222.28,7.23104402]
[1734320170891,8.35948894,222.34,222.29,4.98064402]
[1734320171090,8.35948894,222.34,222.3,4.98064402]
[1734320171393,6.10968894,222.32,222.31,4.98064402]
[1734320171790,6.10968894,222.32,222.28,2.2504]
[1734320172092,6.10968894,222.32,222.29,4.98136078]
[1734320172294,6.10968894,222.32,222.3,4.98136078]
[1734320172494,6.10968894,222.32,222.28,2.2504]
[1734320172690,6.10968894,222.32,222.29,4.98117855]
[1734320172997,2.2501,222.31,222.3,4.98117855]
[1734320173185,6.10968894,222.31,222.07,14.91809979]
[1734320173497,6.10968894,222.28,222.19,13.31088238]
[1734320173691,2.2506,222.26,222.24,5.36115281]
[1734320173993,8.36028894,222.26,222.25,4.98119344]
[1734320175087,2.2508,222.24,222.19,2.2512]
[1734320175284,2.9393,222.3,222.21,5.47740953]
[1734320175493,6.10968894,222.28,222.22,7.23111779]
[1734320175692,8.36008894,222.28,222.23,4.98021779]
[1734320175887,2.2504,222.28,222.24,4.98021779]
[1734320176090,8.36008894,222.28,222.25,4.98021779]
[1734320176403,8.36008894,222.28,222.23,2.2508]
[1734320176697,8.36008894,222.28,222.24,4.97755498]
[1734320176998,8.36008894,222.28,222.25,4.97755498]
[1734320177187,8.36008894,222.28,222.23,2.2508]
[1734320177392,8.36008894,222.28,222.24,4.97793133]
[1734320177594,8.36008894,222.28,222.25,4.97793133]
[1734320177795,6.10968894,222.26,222.21,5.47740953]
[1734320177997,6.10968894,222.26,222.22,4.97785932]
[1734320178187,2.2507,222.25,222.23,4.97785932]
[1734320178391,2.2507,222.25,222.21,5.47740953]
[1734320178598,2.2507,222.25,222.22,4.97813023]
[1734320178789,2.2507,222.25,222.23,4.97813023]
[1734320178989,2.2507,222.25,222.21,5.47740953]
[1734320178990,6.10968894,222.26,222.24,4.97813023]
[1734320179190,8.36028894,222.26,222.21,5.47740953]
[1734320179495,8.36028894,222.26,222.22,4.97814352]
[1734320179794,8.36028894,222.26,222.21,5.47740953]
[1734320179997,8.36028894,222.26,222.23,4.97769693]
[1734320180293,6.10968894,222.24,222.18,1.5487]
[1734320180495,6.10968894,222.24,222.19,4.97809649]
[1734320180691,6.10968894,222.24,222.2,4.97809649]
[1734320180895,6.10968894,222.24,222.18,1.5487]
[1734320181095,6.10968894,222.24,222.19,4.97853375]
[1734320181295,6.10968894,222.24,222.2,4.97853375]
[1734320181492,6.10968894,222.24,222.16,2.22]
[1734320181493,2.251,222.22,222.16,4.4716]
[1734320181696,2.251,222.22,222.17,4.97759828]
[1734320181896,2.251,222.22,222.18,4.97759828]
[1734320182092,2.251,222.22,222.16,4.4716]
[1734320182303,2.251,222.22,222.19,5.51627395]
[1734320182797,2.2509,222.23,222.19,5.51627395]
[1734320186395,6.10968894,222.24,222.19,5.51627395]
[1734320186396,2.251,222.22,222.19,5.51627395]
[1734320186899,6.10968894,222.2,222.14,2.22]
[1734320187095,6.10968894,222.2,222.15,4.97239264]
[1734320187297,2.2515,222.18,222.12,3.7266]
[1734320187498,2.2515,222.18,222.13,4.97264255]
[1734320187692,2.2515,222.18,222.14,4.97264255]
[1734320187892,2.2515,222.18,222.15,4.97264255]
[1734320188101,2.2515,222.18,222.12,3.7266]
[1734320188301,8.36148894,222.14,222.11,5.41467118]
[1734320188800,8.36148894,222.14,222.08,2.2524]
[1734320188999,8.36148894,222.14,222.09,4.97204157]
[1734320189195,8.36148894,222.14,222.1,4.97204157]
[1734320189400,8.36148894,222.14,222.08,2.2524]
[1734320189592,8.36148894,222.14,222.09,4.97031389]
[1734320189794,8.36148894,222.14,222.1,4.97031389]
[1734320189995,8.36148894,222.14,222.08,2.2524]
[1734320190196,8.36148894,222.14,222.09,10.33407871]
[1734320190395,6.10968894,222.12,222.1,4.97032834]
[1734320190592,6.10968894,222.12,222.09,5.36375037]
[1734320190792,6.10968894,222.12,222.1,4.96879194]
[1734320190996,8.32968894,222.14,222.09,5.36375037]
[1734320191202,8.32968894,222.14,222.1,4.96877836]
[1734320191499,8.32968894,222.14,222.09,5.36375037]
[1734320191702,8.32968894,222.14,222.1,4.96774444]
[1734320191903,8.32968894,222.14,222.09,5.36375037]
[1734320192093,8.32968894,222.14,222.1,4.96774444]
[1734320192297,8.32968894,222.14,222.09,5.36375037]
[1734320192494,10.58148894,222.14,222.1,4.96712527]
[1734320192700,10.58148894,222.14,222.09,5.36375037]
[1734320192900,10.58148894,222.14,222.1,4.96712527]
[1734320193101,10.58148894,222.14,222.09,5.36375037]
[1734320193299,10.58148894,222.14,222.1,4.96712527]
[1734320193496,10.58148894,222.14,222.09,5.36375037]
[1734320194002,10.58148894,222.14,222.09,7.61605037]
[1734320194003,2.22,222.14,222.09,7.61605037]
[1734320194194,6.10968894,222.16,222.09,5.36375037]
[1734320194394,2.22,222.19,222.1,11.07373524]
[1734320194602,8.32968894,222.19,222.1,8.32968894]
[1734320195099,10.58108894,222.19,222.12,2.252]
[1734320195305,8.36108894,222.19,222.12,2.252]
[1734320195605,6.10968894,222.19,222.12,2.252]
[1734320196300,6.10968894,222.19,222.13,2.2519]
[1734320197407,8.36098894,222.19,222.13,2.2519]
[1734320197800,6.10968894,222.19,222.14,2.2518]
[1734320199204,8.36088894,222.21,222.15,2.2517]
[1734320199397,10.58058894,222.23,222.14,6.10968894]
[1734320199603,6.10968894,222.23,222.14,6.10968894]
[1734320199797,6.10968894,222.23,222.16,2.2515]
[1734320200002,8.36058894,222.24,222.16,6.10968894]
[1734320200905,6.10968894,222.24,222.16,6.10968894]
[1734320201105,2.2509,222.23,222.16,6.10968894]
[1734320203905,2.2509,222.23,222.16,8.36128894]
[1734320204307,2.2509,222.23,222.17,2.22]
[1734320206111,8.36058894,222.23,222.17,2.22]
[1734320207413,2.251,222.22,222.17,2.22]
[1734320210316,6.10968894,222.19,222.11,2.9437]
[1734320210610,6.10968894,222.19,222.12,4.96784599]
[1734320210809,6.10968894,222.19,222.11,5.1637]
[1734320211021,6.10968894,222.19,222.12,4.96824003]
[1734320211213,6.10968894,222.19,222.11,5.1637]
[1734320211416,2.2514,222.18,222.12,4.96830994]
[1734320211622,2.2514,222.18,222.11,7.4158]
[1734320211822,2.2514,222.18,222.12,4.96935174]
[1734320212019,2.2516,222.17,222.13,4.96935174]
[1734320212223,6.10968894,222.19,222.11,2.22]
[1734320212424,6.10968894,222.19,222.12,4.9705292]
[1734320212621,6.10968894,222.19,222.11,2.22]
[1734320212622,2.2517,222.16,222.11,2.22]
[1734320213122,2.2517,222.16,222.12,4.97063989]
[1734320213323,2.2517,222.16,222.1,7.60888894]
[1734320213625,2.2517,222.16,222.11,4.97071218]
[1734320213820,6.10968894,222.15,222.09,5.36375037]
[1734320214021,6.10968894,222.15,222.1,4.97233335]
[1734320214227,6.10968894,222.15,222.11,4.97233335]
[1734320214426,6.10968894,222.13,222.06,6.10968894]
[1734320214622,6.10968894,222.13,222.07,4.97366647]
[1734320214920,6.10968894,222.13,222.08,4.97366647]
[1734320215125,6.10968894,222.13,222.04,9.79678894]
[1734320215126,2.2522,222.1,222.09,4.97366647]
[1734320215427,6.10968894,222.11,222.04,1.4343]
[1734320215726,6.10968894,222.11,222.05,4.97525117]
[1734320216028,6.10968894,222.11,222.06,10.28807104]
[1734320216327,6.10968894,222.11,222.03,11.32618894]
[1734320216328,2.2524,222.08,222.07,4.97759677]
[1734320216526,2.2524,222.08,222.03,6.10968894]
[1734320216721,2.2524,222.08,222.04,4.97624894]
[1734320216930,2.2524,222.08,222.05,4.97624894]
[1734320217225,2.2524,222.08,222.06,4.97624894]
[1734320217421,2.2525,222.07,222.04,5.51355588]
[1734320217627,2.2525,222.07,222.05,4.97710788]
[1734320217818,2.2525,222.07,222.06,4.97710788]
[1734320218025,2.2525,222.07,222.01,8.32968894]
[1734320218327,2.2525,222.07,222.02,4.97710477]
[1734320218521,2.2525,222.07,222.03,4.97710477]
[1734320218716,2.2525,222.07,222.04,4.97710477]
[1734320219021,2.2525,222.07,222.05,4.97710477]
[1734320219221,2.2525,222.07,222.01,2.2531]
[1734320219422,2.2525,222.07,222.02,4.97648051]
[1734320219627,2.2525,222.07,222.03,4.97648051]
[1734320219822,2.2525,222.07,222.04,4.97648051]
[1734320220030,2.2525,222.07,222.01,2.2531]
[1734320220230,2.2525,222.07,222.02,4.97579765]
[1734320220426,2.2525,222.07,222.03,10.38901662]
[1734320220627,2.2525,222.07,222.04,4.97579765]
[1734320220832,2.2525,222.07,222.05,4.97579765]
[1734320221032,2.2525,222.07,222.03,5.41321897]
[1734320221228,2.2525,222.07,222.04,4.97625524]
[1734320221428,2.2525,222.07,222.05,4.97625524]
[1734320221632,2.2528,222.05,221.99,6.45354894]
[1734320221829,2.2528,222.05,222.0,4.97598217]
[1734320222024,6.10968894,222.07,222.01,4.97598217]
[1734320222229,6.10968894,222.07,222.02,4.97598217]